bitfinex/quotes_BTCUSD_20220202
["timestamp","ask_amount","ask_price","bid_price","bid_amount"]
[1643827585547,0.06147852,37502.0,37499.0,0.066675]
[1643827587048,0.06147852,37502.0,37500.0,0.25692861]
[1643827587250,0.06147852,37502.0,37500.0,0.35692861]
[1643827587604,0.06147852,37502.0,37501.0,0.86963358]
[1643827587805,0.06147852,37502.0,37501.0,0.91963358]
[1643827588906,0.06147852,37502.0,37501.0,0.99511068]
[1643827591760,0.06147852,37502.0,37501.0,0.94511068]
[1643827591960,0.06147852,37502.0,37500.0,0.22647262]
[1643827592161,0.06147852,37502.0,37500.0,0.12647262]
[1643827592361,0.06147852,37502.0,37498.0,0.21984955]
[1643827593361,0.06147852,37502.0,37498.0,0.22039912]
[1643827593559,0.31859396,37502.0,37498.0,0.22039912]
[1643827594160,0.21859396,37502.0,37498.0,0.22039912]
[1643827594360,0.21859396,37502.0,37499.0,0.066677]
[1643827595208,0.00015802,37501.0,37499.0,0.066677]
[1643827596209,0.00015802,37501.0,37500.0,0.2263053]
[1643827596412,0.00015802,37501.0,37500.0,0.58445457]
[1643827596810,0.00015802,37501.0,37500.0,0.63445457]
[1643827597412,0.04653808,37504.0,37500.0,0.23445457]
[1643827597614,0.04653808,37504.0,37499.0,0.13335325]
[1643827598311,0.04653808,37504.0,37503.0,0.22245835]
[1643827598612,0.40038208,37504.0,37503.0,0.22245835]
[1643827599066,0.353844,37504.0,37503.0,0.22245835]
[1643827603501,0.3854958,37506.0,37503.0,0.22245835]
[1643827603701,0.353844,37505.0,37501.0,0.05]
[1643827603900,0.3854958,37506.0,37501.0,0.1]
[1643827604101,0.3854958,37506.0,37501.0,0.05]
[1643827604306,0.23134394,37502.0,37501.0,0.05]
[1643827606458,0.23134394,37502.0,37497.0,0.28779568]
[1643827606663,0.23134394,37502.0,37498.0,0.00054957]
[1643827607457,0.23134394,37502.0,37497.0,0.28779568]
[1643827607659,0.23134394,37502.0,37498.0,0.00059483]
[1643827608561,0.33910463,37504.0,37498.0,0.00059483]
[1643827608562,0.33910463,37504.0,37498.0,0.29684397]
[1643827608762,0.00014691,37504.0,37498.0,0.29624914]
[1643827609161,0.00014691,37504.0,37499.0,0.05]
[1643827609563,0.25963716,37503.0,37499.0,0.05]
[1643827610203,0.00014612,37501.0,37499.0,0.05]
[1643827610403,0.00014612,37501.0,37499.0,0.116677]
[1643827610606,0.00014612,37501.0,37499.0,0.166677]
[1643827613303,0.00014612,37501.0,37499.0,0.39526663]
[1643827614158,0.00014612,37501.0,37499.0,0.166677]
[1643827614356,0.00014612,37501.0,37499.0,0.39706218]
[1643827614561,0.00014612,37501.0,37499.0,0.166677]
[1643827614960,0.2900384,37503.0,37499.0,0.1]
[1643827615361,0.00014585,37503.0,37499.0,0.1]
[1643827616160,0.00014585,37503.0,37499.0,0.166678]
[1643827616962,0.00014585,37503.0,37499.0,0.116678]
[1643827617361,0.33910357,37503.0,37499.0,0.116678]
[1643827618307,0.00014585,37503.0,37500.0,0.24998614]
[1643827618908,0.00014585,37503.0,37499.0,0.39408722]
[1643827619205,0.00014585,37503.0,37499.0,0.116678]
[1643827619406,0.33910357,37503.0,37499.0,0.05]
[1643827621006,0.33910357,37503.0,37499.0,0.04929]
[1643827623058,0.00014585,37503.0,37499.0,0.04929]
[1643827623255,0.33930232,37503.0,37499.0,0.04929]
[1643827626509,0.10466416,37501.0,37499.0,0.04929]
[1643827626905,0.353844,37500.0,37499.0,0.04929]
[1643827627509,0.6270858,37500.0,37499.0,0.04929]
[1643827628107,0.6270858,37500.0,37497.0,0.00071]
[1643827628108,0.75,37498.0,37497.0,0.00071]
[1643827628309,1.22034172,37498.0,37497.0,0.00071]
[1643827628508,0.990961,37498.0,37497.0,0.00071]
[1643827628709,1.38662933,37498.0,37497.0,0.00071]
[1643827628956,1.73296953,37498.0,37497.0,0.00071]
[1643827629158,1.73296953,37498.0,37495.0,0.04929]
[1643827629159,1.88296953,37498.0,37495.0,0.04929]
[1643827629358,1.18244823,37497.0,37496.0,0.00054713]
[1643827629656,1.24224823,37497.0,37496.0,0.00054713]
[1643827629955,2.09224823,37497.0,37496.0,0.00054713]
[1643827630355,2.09224823,37497.0,37495.0,0.04929]
[1643827630356,2.15895624,37497.0,37495.0,0.04929]
[1643827630556,2.40976523,37496.0,37495.0,0.04929]
[1643827630758,3.32863107,37496.0,37495.0,0.04983713]
[1643827631160,1.1814914,37495.0,37490.0,0.02057831]
[1643827631361,1.1814914,37495.0,37487.0,0.02558064]
[1643827631362,0.33904925,37492.0,37487.0,0.02558064]
[1643827631557,0.88835641,37491.0,37487.0,0.02558064]
[1643827631757,1.160844,37490.0,37487.0,0.02558064]
[1643827631957,0.97914355,37488.0,37487.0,0.02558064]
[1643827632158,1.39278755,37488.0,37487.0,0.02558064]
[1643827632611,1.74484428,37488.0,37487.0,0.02558064]
[1643827633212,0.99484428,37488.0,37487.0,0.02558064]
[1643827633414,0.69278755,37488.0,37487.0,0.02558064]
[1643827634015,0.92066374,37488.0,37487.0,0.02558064]
[1643827634414,1.0950147,37488.0,37487.0,0.02558064]
[1643827636662,0.86713851,37488.0,37487.0,0.02558064]
[1643827637059,0.413644,37488.0,37487.0,0.02558064]
[1643827637461,0.04653808,37490.0,37487.0,0.02558064]
[1643827638064,0.04653808,37490.0,37489.0,1.34740827]
[1643827638261,0.04653808,37490.0,37489.0,1.15]
[1643827638464,0.04653808,37490.0,37489.0,1.40623804]
[1643827638663,0.04653808,37490.0,37489.0,2.41008204]
[1643827639063,0.00346192,37492.0,37489.0,2.213644]
[1643827639261,0.00346192,37492.0,37490.0,0.73217169]
[1643827639466,0.00346192,37492.0,37491.0,2.50068727]
[1643827639661,0.00346192,37492.0,37491.0,2.72038886]
[1643827639862,0.00058242,37501.0,37499.0,0.02196554]
[1643827640112,0.22138705,37502.0,37499.0,0.02196554]
[1643827640306,0.00058245,37501.0,37499.0,0.25075098]
[1643827641105,0.22138705,37502.0,37499.0,0.25075098]
[1643827641511,0.22196972,37502.0,37499.0,0.25075098]
[1643827641807,0.00058267,37502.0,37499.0,0.25075098]
[1643827642405,0.05,37503.0,37499.0,0.25075098]
[1643827642806,0.00058267,37502.0,37499.0,0.25075098]
[1643827643609,0.05,37503.0,37499.0,0.25075098]
[1643827643853,0.00058267,37502.0,37499.0,0.25075098]
[1643827644855,0.05,37503.0,37499.0,0.25075098]
[1643827645056,0.00013866,37501.0,37499.0,0.4789777]
[1643827645257,0.00013866,37501.0,37500.0,1.51328473]
[1643827646758,0.00013866,37501.0,37500.0,0.31328473]
[1643827647601,0.00013866,37501.0,37500.0,1.26328473]
[1643827648003,0.00013866,37501.0,37500.0,1.61712873]
[1643827648302,0.00013866,37501.0,37500.0,1.0098]
[1643827651452,0.00013866,37501.0,37500.0,0.6598]
[1643827654156,0.00013866,37501.0,37500.0,0.87242293]
[1643827656119,0.00013866,37501.0,37500.0,0.92242293]
[1643827656516,0.00013866,37501.0,37500.0,1.62242293]
[1643827656715,0.00013866,37501.0,37500.0,1.72242293]
[1643827656915,0.00013866,37501.0,37500.0,2.07626693]
[1643827657516,0.00013866,37501.0,37500.0,2.42626693]
[1643827657718,0.00013866,37501.0,37500.0,2.07626693]
[1643827658516,0.00013866,37501.0,37500.0,1.37626693]
[1643827659361,0.00013866,37501.0,37500.0,1.87626693]
[1643827659959,0.00013866,37501.0,37500.0,1.37626693]
[1643827660361,0.0021,37515.0,37500.0,1.44293293]
[1643827660562,0.0021,37513.0,37502.0,0.7472]
[1643827660761,0.00167389,37508.0,37503.0,0.30870265]
[1643827661164,0.00167389,37508.0,37504.0,0.30289241]
[1643827661165,0.23983084,37507.0,37504.0,0.30289241]
[1643827661371,0.23983084,37507.0,37505.0,0.0598]
[1643827661961,0.02395652,37504.0,37501.0,0.123]
[1643827662163,0.24023617,37507.0,37498.0,0.4458]
[1643827662360,0.23523617,37507.0,37495.0,0.266685]
[1643827662606,0.353844,37506.0,37495.0,0.434585]
[1643827662811,0.353844,37506.0,37498.0,0.30626654]
[1643827663008,0.00058423,37505.0,37498.0,0.30626654]
[1643827664016,0.20894597,37502.0,37500.0,0.05]
[1643827665511,0.353844,37501.0,37500.0,0.05]
[1643827666111,0.353844,37501.0,37497.0,0.00059638]
[1643827666354,0.353844,37501.0,37495.0,0.49974041]
[1643827666556,0.353844,37501.0,37495.0,0.48025782]
[1643827666757,0.353844,37501.0,37497.0,0.00059637]
[1643827666954,0.353844,37501.0,37498.0,0.05]
[1643827667356,0.05,37503.0,37498.0,0.05]
[1643827667556,0.353844,37502.0,37498.0,0.05]
[1643827668056,0.63854229,37502.0,37498.0,0.05]
[1643827668356,0.131161,37501.0,37498.0,0.05]
[1643827668756,0.181161,37501.0,37498.0,0.05]
[1643827668957,0.353844,37500.0,37498.0,0.05]
[1643827669356,0.28469829,37502.0,37498.0,0.05]
[1643827669557,0.353844,37501.0,37498.0,0.05]
[1643827671410,0.403844,37501.0,37498.0,0.05]
[1643827671610,0.131161,37500.0,37498.0,0.05]
[1643827674165,0.353844,37501.0,37498.0,0.05]
[1643827674766,0.131161,37501.0,37498.0,0.3196674]
[1643827674967,0.00014747,37500.0,37498.0,0.05]
[1643827675267,0.35399147,37500.0,37498.0,0.05]
[1643827679318,0.00014747,37500.0,37498.0,0.05]
[1643827680217,0.28484576,37502.0,37498.0,0.05]
[1643827680417,0.353844,37501.0,37498.0,0.05]
[1643827682254,0.403844,37501.0,37498.0,0.05]
[1643827682459,0.131161,37500.0,37498.0,0.05]
[1643827682657,0.85,37499.0,37481.0,0.7449]
[1643827682957,0.85,37499.0,37478.0,0.0022133]
[1643827682958,0.066707,37495.0,37479.0,1.6386981]
[1643827683157,0.33909354,37493.0,37488.0,0.05]
[1643827683357,0.72377035,37492.0,37488.0,0.05]
[1643827683556,0.22445527,37489.0,37488.0,0.05]
[1643827683758,0.27445527,37489.0,37488.0,0.05]
[1643827683959,0.5452264,37489.0,37488.0,0.05]
[1643827684156,0.78501444,37489.0,37481.0,0.52504435]
[1643827684356,0.78501444,37489.0,37481.0,0.2550462]
[1643827684756,0.83501444,37489.0,37481.0,0.2550462]
[1643827684957,0.83501444,37489.0,37483.0,0.00017931]
[1643827685210,0.0598,37489.0,37483.0,0.00017931]
[1643827685810,0.0598,37489.0,37481.0,0.2550462]
[1643827686011,0.0598,37489.0,37481.0,2.02059351]
[1643827686210,0.0598,37489.0,37487.0,0.49122611]
[1643827686610,0.0598,37489.0,37487.0,0.2423543]
[1643827687011,0.22174529,37490.0,37483.0,0.066699]
[1643827687215,0.22174529,37490.0,37486.0,0.00059625]
[1643827687412,0.05,37490.0,37486.0,0.05059625]
[1643827687611,0.25189887,37489.0,37486.0,0.05059625]
[1643827688014,0.24814523,37488.0,37486.0,0.05059625]
[1643827688214,0.24814523,37488.0,37486.0,0.05]
[1643827688414,0.24814523,37488.0,37486.0,0.05059626]
[1643827689356,0.24814523,37488.0,37486.0,0.05]
[1643827689655,0.22651049,37491.0,37486.0,0.05]
[1643827689656,0.1598,37491.0,37486.0,0.05]
[1643827690257,0.0001489,37489.0,37486.0,0.05]
[1643827690458,0.25551497,37488.0,37486.0,0.01618839]
[1643827690659,1.403844,37487.0,37486.0,0.01618839]
[1643827690958,1.613644,37487.0,37486.0,0.01678465]
[1643827691157,1.563644,37487.0,37486.0,0.00059626]
[1643827691358,1.463644,37487.0,37486.0,0.00059626]
[1643827691559,1.80600145,37487.0,37486.0,0.00059626]
[1643827691757,1.85600145,37487.0,37484.0,0.03381161]
[1643827691957,0.231161,37486.0,37484.0,0.03381161]
[1643827692258,0.231161,37486.0,37485.0,0.00056503]
[1643827692259,0.15,37486.0,37485.0,0.00056503]
[1643827692459,0.563644,37486.0,37485.0,0.00056503]
[1643827692906,0.463644,37486.0,37485.0,0.00056503]
[1643827693105,0.563644,37486.0,37484.0,0.03381161]
[1643827693308,0.131161,37485.0,37484.0,0.03381161]
[1643827694005,0.581161,37485.0,37482.0,0.01618839]
[1643827694206,0.353844,37484.0,37482.0,0.01618839]
[1643827694407,0.403844,37484.0,37482.0,0.01618839]
[1643827694605,0.481161,37483.0,37482.0,0.01618839]
[1643827694806,0.131161,37483.0,37482.0,0.01618839]
[1643827695011,0.531161,37483.0,37480.0,0.03381161]
[1643827695206,0.52785408,37481.0,37480.0,0.03381161]
[1643827695407,0.65901508,37481.0,37480.0,0.03381161]
[1643827695706,0.25901508,37481.0,37480.0,0.03381161]
[1643827695906,0.25901508,37481.0,37477.0,0.02073445]
[1643827695907,0.52962768,37481.0,37477.0,0.02073445]
[1643827696109,0.39846668,37481.0,37478.0,0.01618839]
[1643827696604,0.44846668,37481.0,37478.0,0.01618839]
[1643827696798,0.65322776,37480.0,37478.0,0.01678385]
[1643827696999,1.031161,37479.0,37478.0,0.00059546]
[1643827697199,1.140961,37479.0,37478.0,0.00059546]
[1643827697399,1.290961,37479.0,37478.0,0.00059546]
[1643827697702,1.56799179,37479.0,37478.0,0.00059546]
[1643827697899,1.56799179,37479.0,37477.0,0.03381161]
[1643827698100,1.053844,37478.0,37477.0,0.03440709]
[1643827698301,1.113644,37478.0,37477.0,0.03440709]
[1643827699098,1.763644,37478.0,37477.0,0.03381161]
[1643827699702,1.113644,37478.0,37477.0,0.03381161]
[1643827700318,1.113644,37478.0,37474.0,0.1]
[1643827700319,0.72280585,37478.0,37474.0,0.1]
[1643827700520,0.72280585,37478.0,37476.0,0.0005955]
[1643827700521,0.131161,37477.0,37476.0,0.0005955]
[1643827700715,0.46018302,37477.0,37476.0,0.0005955]
[1643827700915,0.190961,37477.0,37476.0,0.0005955]
[1643827701117,0.00014492,37479.0,37476.0,0.0005955]
[1643827701715,0.00014492,37479.0,37475.0,0.46086498]
[1643827701915,0.00014492,37479.0,37475.0,0.23825547]
[1643827702114,0.30334451,37479.0,37476.0,0.00055022]
[1643827702714,0.30334451,37479.0,37475.0,0.23825547]
[1643827702917,0.30334451,37479.0,37476.0,0.00054263]
[1643827703117,0.07944747,37478.0,37476.0,0.00054263]
[1643827703316,0.353844,37477.0,37476.0,0.00054263]
[1643827703955,0.353844,37477.0,37475.0,0.05]
[1643827704153,0.353844,37477.0,37475.0,0.05054264]
[1643827705154,0.353844,37477.0,37475.0,0.05]
[1643827705754,0.00014465,37478.0,37475.0,0.05]
[1643827706955,0.00014465,37478.0,37475.0,0.05054039]
[1643827707710,0.00014465,37478.0,37475.0,0.05]
[1643827707916,0.00014465,37478.0,37475.0,0.05054039]
[1643827709013,0.00014465,37478.0,37475.0,0.05049576]
[1643827710014,0.36287574,37481.0,37475.0,0.05]
[1643827710015,0.36302012,37481.0,37475.0,0.05]
[1643827710214,0.2263153,37480.0,37475.0,0.30448064]
[1643827710816,0.2263153,37480.0,37475.0,0.05049576]
[1643827711015,0.353844,37479.0,37475.0,0.05049576]
[1643827711217,0.353844,37479.0,37475.0,0.05]
[1643827711658,0.353844,37479.0,37476.0,0.00049575]
[1643827712460,0.353844,37479.0,37475.0,0.05]
[1643827712659,0.353844,37479.0,37476.0,0.00050255]
[1643827713859,0.353844,37479.0,37475.0,0.05]
[1643827715109,0.00014465,37478.0,37475.0,0.05]
[1643827715309,0.131161,37477.0,37475.0,0.05]
[1643827715716,0.00014465,37478.0,37475.0,0.05]
[1643827716509,0.20877753,37478.0,37475.0,0.05]
[1643827717310,0.2180582,37477.0,37475.0,0.05]
[1643827717512,0.2180582,37477.0,37475.0,0.05056932]
[1643827718316,0.2180582,37477.0,37475.0,0.05045184]
[1643827718514,0.2180582,37477.0,37475.0,0.04988252]
[1643827718711,0.1,37477.0,37475.0,0.04988252]
[1643827718962,0.353844,37476.0,37475.0,0.04988252]
[1643827719262,0.403844,37476.0,37475.0,0.04988252]
[1643827720063,0.403844,37476.0,37474.0,0.10056932]
[1643827720265,0.37177798,37475.0,37474.0,0.10056932]
[1643827720861,0.37177798,37475.0,37474.0,0.1]
[1643827724920,0.37192183,37475.0,37474.0,0.1]
[1643827729471,1.0,37473.0,37472.0,0.04988252]
[1643827729670,1.353844,37473.0,37472.0,0.04988252]
[1643827729871,1.607244,37473.0,37472.0,0.04988252]
[1643827730115,1.607244,37473.0,37469.0,0.01883447]
[1643827730318,1.607244,37473.0,37470.0,0.00011748]
[1643827730319,0.26915234,37471.0,37470.0,0.00011748]
[1643827730518,0.92424493,37471.0,37470.0,0.00011748]
[1643827730717,1.07424493,37471.0,37470.0,0.00011748]
[1643827731117,1.07424493,37471.0,37469.0,0.01883447]
[1643827731326,0.231161,37470.0,37469.0,0.01883447]
[1643827732319,0.231161,37470.0,37468.0,0.05002925]
[1643827732520,0.25399516,37469.0,37468.0,0.04502925]
[1643827732921,0.25399516,37469.0,37468.0,0.04488252]
[1643827733120,0.25399516,37469.0,37466.0,0.00511748]
[1643827733320,0.25399516,37469.0,37467.0,0.0004891]
[1643827734066,0.25399516,37469.0,37466.0,0.04488252]
[1643827735072,0.25413741,37469.0,37466.0,0.04488252]
[1643827735470,0.25413741,37469.0,37466.0,0.04542865]
[1643827735771,0.30413741,37469.0,37466.0,0.04542865]
[1643827736171,0.25413741,37469.0,37466.0,0.04542865]
[1643827736570,0.25413741,37469.0,37466.0,0.04488252]
[1643827736772,0.25413741,37469.0,37466.0,0.04542865]
[1643827737814,0.25413741,37469.0,37466.0,0.04488252]
[1643827738016,0.25413741,37469.0,37466.0,0.04542865]
[1643827739018,0.25413741,37469.0,37466.0,0.04488252]
[1643827739217,0.25413741,37469.0,37466.0,0.04536567]
[1643827739417,0.21722241,37468.0,37466.0,0.04536567]
[1643827739620,0.30413741,37469.0,37466.0,0.04536567]
[1643827740118,0.30413741,37469.0,37466.0,0.04488252]
[1643827740318,0.25413741,37469.0,37466.0,0.04488252]
[1643827740520,0.30413741,37469.0,37466.0,0.04536567]
[1643827741123,0.1,37468.0,37466.0,0.04536567]
[1643827741368,0.05,37468.0,37466.0,0.04488252]
[1643827741767,0.1,37468.0,37466.0,0.04488252]
[1643827741967,0.15,37468.0,37466.0,0.04488252]
[1643827743071,1.957244,37467.0,37465.0,0.00016361]
[1643827743271,1.931161,37466.0,37465.0,0.00016361]
[1643827743469,2.32365454,37466.0,37465.0,0.00016361]
[1643827743669,2.55476718,37466.0,37465.0,0.00016361]
[1643827743869,2.55476718,37466.0,37461.0,0.01]
[1643827744074,1.10737621,37465.0,37461.0,0.02838983]
[1643827744269,1.10737621,37465.0,37461.0,0.07838983]
[1643827744270,0.231161,37464.0,37461.0,0.07838983]
[1643827744471,0.58622805,37463.0,37461.0,0.06]
[1643827744671,1.39793,37462.0,37461.0,0.06]
[1643827744870,0.5,37461.0,37451.0,0.0101]
[1643827745115,0.05,37459.0,37454.0,0.05]
[1643827745317,0.131161,37458.0,37454.0,0.05]
[1643827745713,0.6509492,37457.0,37456.0,0.02031088]
[1643827745913,1.25094452,37457.0,37454.0,0.05]
[1643827746113,0.231161,37456.0,37454.0,0.05]
[1643827746315,0.353844,37455.0,37454.0,0.05]
[1643827746917,0.353844,37455.0,37451.0,0.0101]
[1643827747115,0.15,37456.0,37451.0,0.0101]
[1643827747917,0.15,37456.0,37452.0,0.0005823]
[1643827748717,0.15,37456.0,37451.0,0.0101]
[1643827748964,0.15,37456.0,37452.0,0.00058229]
[1643827749966,0.353844,37455.0,37451.0,0.0101]
[1643827750170,0.15,37456.0,37452.0,0.00058229]
[1643827750371,0.35397392,37455.0,37452.0,0.00058229]
[1643827750570,0.131161,37454.0,37452.0,0.00058229]
[1643827750769,0.181161,37454.0,37452.0,0.00058229]
[1643827750970,0.353844,37453.0,37452.0,0.00058229]
[1643827751170,0.353844,37453.0,37451.0,0.0101]
[1643827751374,0.05,37454.0,37451.0,0.01063798]
[1643827751570,0.00012992,37455.0,37451.0,0.01063798]
[1643827751770,0.403844,37454.0,37451.0,0.01063798]
[1643827751972,0.131161,37453.0,37451.0,0.01063798]
[1643827752170,0.1,37453.0,37451.0,0.01063798]
[1643827752369,0.05,37454.0,37451.0,0.0101]
[1643827752618,0.05,37454.0,37451.0,0.01063799]
[1643827752820,0.00012992,37455.0,37451.0,0.01063799]
[1643827753219,0.05012992,37455.0,37451.0,0.01063799]
[1643827753423,0.05012992,37455.0,37453.0,0.2133666]
[1643827753621,0.05012992,37455.0,37454.0,1.32236102]
[1643827754022,0.05012992,37455.0,37454.0,1.1]
[1643827754221,0.00012992,37455.0,37454.0,1.1]
[1643827755122,0.37561063,37457.0,37454.0,1.1]
[1643827755722,0.37561063,37457.0,37453.0,0.00048549]
[1643827755922,0.37561063,37457.0,37451.0,0.1328]
[1643827756123,0.37561063,37457.0,37454.0,0.00048548]
[1643827757073,0.37561063,37457.0,37452.0,0.21661727]
[1643827757276,0.37561063,37457.0,37454.0,0.00048548]
[1643827758273,0.37561063,37457.0,37452.0,0.21661727]
[1643827758473,0.37561063,37457.0,37454.0,0.00058227]
[1643827759573,0.28843841,37457.0,37452.0,0.21661727]
[1643827759777,0.28843841,37457.0,37454.0,0.00058227]
[1643827760215,6.365e-05,37456.0,37454.0,0.00058227]
[1643827760616,6.365e-05,37456.0,37452.0,0.21661727]
[1643827762113,6.365e-05,37456.0,37452.0,0.21715501]
[1643827763116,6.365e-05,37456.0,37452.0,0.21661727]
[1643827763316,6.365e-05,37456.0,37452.0,0.21677859]
[1643827763517,6.365e-05,37456.0,37452.0,0.26677859]
[1643827763727,6.365e-05,37456.0,37453.0,0.21832155]
[1643827763963,6.365e-05,37456.0,37453.0,0.066753]
[1643827764362,6.365e-05,37456.0,37455.0,2.4058412]
[1643827764561,6.365e-05,37456.0,37453.0,0.06729073]
[1643827764967,0.000141,37455.0,37454.0,0.066754]
[1643827765964,0.000141,37455.0,37453.0,0.06733429]
[1643827766763,0.000141,37455.0,37453.0,0.066753]
[1643827769213,0.000141,37455.0,37452.0,0.0672968]
[1643827769614,5.045e-05,37455.0,37452.0,0.0005398]
[1643827770220,0.26101554,37453.0,37451.0,0.0101]
[1643827770415,0.26101554,37453.0,37452.0,0.00053981]
[1643827771117,7.36e-05,37454.0,37452.0,0.00053981]
[1643827771566,7.36e-05,37454.0,37451.0,0.0101]
[1643827771771,0.09243339,37452.0,37451.0,0.0101]
[1643827771967,0.09243339,37452.0,37451.0,0.01063982]
[1643827772167,0.31571014,37452.0,37451.0,0.01063982]
[1643827772771,0.31571014,37452.0,37451.0,0.0101]
[1643827773167,0.53750137,37452.0,37451.0,0.0101]
[1643827774166,0.09243339,37452.0,37451.0,0.0101]
[1643827774970,0.09262998,37452.0,37451.0,0.0101]
[1643827775623,0.09262998,37452.0,37451.0,0.0096]
[1643827777623,0.00019659,37452.0,37451.0,0.0096]
[1643827778981,0.00019659,37452.0,37451.0,1.1096]
[1643827779382,0.00019659,37452.0,37451.0,1.1596]
[1643827781883,0.00019659,37452.0,37451.0,1.1096]
[1643827782484,0.00019659,37452.0,37451.0,0.0096]
[1643827782717,0.30393866,37457.0,37454.0,0.21863817]
[1643827783718,0.30393866,37457.0,37454.0,0.21912247]
[1643827783916,0.30393866,37457.0,37454.0,0.0004843]
[1643827784217,0.35393866,37457.0,37454.0,0.0004843]
[1643827784717,0.35393866,37457.0,37452.0,0.13353]
[1643827784718,0.09458655,37456.0,37451.0,0.0096]
[1643827784917,0.09458655,37456.0,37454.0,0.0004843]
[1643827785919,0.09458655,37456.0,37451.0,0.0096]
[1643827786118,0.09458655,37456.0,37453.0,0.0004843]
[1643827787267,0.09458655,37456.0,37451.0,0.143134]
[1643827787467,0.09458655,37456.0,37453.0,0.00057303]
[1643827788268,0.09458655,37456.0,37451.0,0.143134]
[1643827788470,0.09458655,37456.0,37453.0,0.00057303]
[1643827789568,0.09458655,37456.0,37451.0,0.076368]
[1643827789769,0.09458655,37456.0,37453.0,0.00058129]
[1643827790216,0.00011883,37455.0,37453.0,0.00058129]
[1643827790416,0.00011883,37455.0,37453.0,0.06734529]
[1643827790817,0.00011883,37455.0,37453.0,0.066764]
[1643827793871,0.00011883,37455.0,37453.0,0.116764]
[1643827795072,0.30405723,37457.0,37453.0,0.116764]
[1643827797725,0.04976944,37457.0,37453.0,0.066764]
[1643827798125,0.04976944,37457.0,37455.0,0.13352]
[1643827798326,0.04476944,37457.0,37455.0,0.13352]
[1643827798528,0.04476944,37457.0,37453.0,0.06734619]
[1643827798725,0.31366749,37457.0,37453.0,0.06734619]
[1643827799126,0.31366749,37457.0,37453.0,0.066764]
[1643827800528,0.31366749,37457.0,37453.0,0.116764]
[1643827801228,0.04476944,37457.0,37453.0,0.116764]
[1643827801871,0.04476944,37457.0,37453.0,0.33670575]
[1643827802075,0.04341421,37457.0,37455.0,0.25479958]
[1643827802275,0.04341421,37457.0,37456.0,2.02194303]
[1643827802471,0.04341421,37457.0,37456.0,2.09677751]
[1643827803271,0.04341421,37457.0,37456.0,2.02194303]
[1643827804076,0.00011857,37457.0,37456.0,2.02194303]
[1643827804974,0.00011857,37457.0,37456.0,2.11061411]
[1643827805225,0.04341502,37459.0,37456.0,2.11061411]
[1643827805426,0.33331692,37468.0,37458.0,1.65]
[1643827805728,0.48432,37477.0,37458.0,1.65]
[1643827805729,0.57664907,37474.0,37459.0,0.94670404]
[1643827805924,0.57664907,37474.0,37460.0,0.403844]
[1643827806123,0.05,37469.0,37468.0,0.23014669]
[1643827806327,0.05,37469.0,37468.0,0.46166838]
[1643827806526,0.05,37469.0,37468.0,0.52146838]
[1643827807125,0.1183,37482.0,37468.0,0.52146838]
[1643827807126,0.18109798,37478.0,37468.0,1.17841554]
[1643827807326,0.34765422,37485.0,37476.0,0.27282204]
[1643827807327,0.63322996,37481.0,37476.0,0.27282204]
[1643827807528,0.23767887,37481.0,37477.0,0.0598]
[1643827807726,0.23767887,37481.0,37478.0,0.0598]
[1643827808127,0.23767887,37481.0,37478.0,0.126517]
[1643827808526,0.30714196,37482.0,37478.0,0.126517]
[1643827808726,0.30714196,37482.0,37478.0,0.243234]
[1643827808727,0.05,37482.0,37478.0,0.243234]
[1643827809171,0.045,37482.0,37478.0,0.243234]
[1643827809375,0.045,37482.0,37478.0,0.293234]
[1643827809971,0.12211824,37482.0,37478.0,0.293234]
[1643827810172,0.00011357,37480.0,37478.0,0.293234]
[1643827810574,0.00011357,37480.0,37478.0,0.359942]
[1643827810771,0.00011357,37480.0,37479.0,1.17474842]
[1643827810973,0.00011357,37480.0,37479.0,1.0098]
[1643827812834,0.07952502,37480.0,37479.0,0.0598]
[1643827813233,0.07952502,37480.0,37478.0,0.05]
[1643827813436,0.903844,37479.0,37478.0,0.05]
[1643827813636,1.0,37478.0,37462.0,0.12633454]
[1643827813835,0.23626335,37473.0,37465.0,0.27710497]
[1643827814036,0.51431521,37472.0,37471.0,0.00058349]
[1643827814636,0.96431521,37472.0,37471.0,0.00058349]
[1643827814834,0.51431521,37472.0,37469.0,0.05]
[1643827815136,0.131161,37471.0,37470.0,0.00054979]
[1643827815436,0.190961,37471.0,37470.0,0.00054979]
[1643827815633,0.740961,37471.0,37470.0,0.00054979]
[1643827815837,0.98293229,37471.0,37470.0,0.00054979]
[1643827816034,0.98293229,37471.0,37469.0,0.05]
[1643827816235,0.98001055,37470.0,37469.0,0.05054223]
[1643827816497,1.03981055,37470.0,37469.0,0.05054223]
[1643827817095,1.88781055,37470.0,37469.0,0.05054223]
[1643827817299,1.93781055,37470.0,37469.0,0.05]
[1643827817495,1.93781055,37470.0,37468.0,0.00054223]
[1643827817695,2.029161,37469.0,37468.0,0.00054223]
[1643827817898,2.188961,37469.0,37468.0,0.00054223]
[1643827818394,1.447917,37469.0,37468.0,0.00054223]
[1643827818594,0.05,37468.0,37459.0,0.66815997]
[1643827818795,1.1034,37468.0,37467.0,0.00054552]
[1643827818993,1.234562,37468.0,37467.0,0.00054552]
[1643827819194,1.384562,37468.0,37467.0,0.00054552]
[1643827819594,1.384562,37468.0,37459.0,0.3974]
[1643827819797,0.69784912,37467.0,37466.0,0.00016196]
[1643827819995,0.75124912,37467.0,37466.0,0.00016196]
[1643827820619,1.45124912,37467.0,37466.0,0.00016196]
[1643827820819,1.45124912,37467.0,37459.0,0.3974]
[1643827821019,0.09589404,37461.0,37459.0,0.3974]
[1643827821219,0.0534,37460.0,37459.0,0.00064796]
[1643827822022,0.28164002,37460.0,37459.0,0.00064796]
[1643827822223,0.73548402,37460.0,37457.0,0.05]
[1643827822427,0.131161,37459.0,37457.0,0.05]
[1643827822620,0.6034,37458.0,37457.0,0.05]
[1643827822820,0.407244,37458.0,37457.0,0.05]
[1643827823020,0.407244,37458.0,37456.0,0.01981065]
[1643827823222,0.407244,37458.0,37452.0,0.02]
[1643827823223,0.931161,37457.0,37452.0,0.02]
[1643827823421,0.407244,37456.0,37452.0,0.02]
[1643827823625,0.131161,37455.0,37452.0,0.02]
[1643827823874,0.0534,37456.0,37452.0,0.02]
[1643827823875,0.0534,37454.0,37452.0,0.02]
[1643827824077,0.283552,37460.0,37452.0,0.02]
[1643827824275,0.0865139,37455.0,37452.0,0.02]